{"text_format":"3","workbook":"xlsx","n_sheets":5,"sheets":["Dashboard","Ausgaben und Einkommen","Kostenrahmen","Datenlisten","Kategorie PivotTable"],"not_rendered":{"charts":3,"defined_names":18,"pivot_tables":2},"read":"whole","date_system":"1900"}

{"sheet":"Dashboard","index":0,"n_rows":21,"n_cols":16,"rows_kept":21,"merged":[[5,2,5,3],[8,9,8,10],[9,9,9,10],[10,9,10,10]]}
[]
[null,null,"Halbmonatliches Haushaltsbudget",{"$nulls":12},"DASHBOARD"]
[]
[]
[]
[null,null,{"$f":"CHOOSE(Monatsnummer,\"Januar\",\"Februar\",\"März\",\"April\",\"Mai\",\"Juni\",\"Juli\",\"August\",\"September\",\"Oktober\",\"November\",\"Dezember\")","v":"November"},null,11,{"$nulls":5},2018]
[]
[]
[null,null,"MONATLICHE SUMMEN","Monthly Totals",{"$nulls":5},"JÄHRLICHE SUMMEN",null,"Annual Totals"]
[null,null,"EINKÜNFTE","Ausgaben",{"$f":"SUMIF(Ausgaben[DATUM],\"<=\"&DatumMonatsende,Ausgaben[BETRAG])-SUMIF(Ausgaben[DATUM],\"<\"&DatumMonatsanfang,Ausgaben[BETRAG])","v":{"v":2792,"d":"2,792 €"}},{"$nulls":4},"EINKÜNFTE",null,"Ausgaben",{"$f":"SUM(IF(YEAR(Ausgaben[DATUM])=K6,Ausgaben[BETRAG]))","v":{"v":10242,"d":"10,242 €"}}]
[null,null,"AUSGABEN","Einkünfte",{"$f":"SUMIF(Einkünfte[DATUM],\"<=\"&DatumMonatsende,Einkünfte[BETRAG])-SUMIF(Einkünfte[DATUM],\"<\"&DatumMonatsanfang,Einkünfte[BETRAG])","v":{"v":2600,"d":"2,600 €"}},{"$nulls":4},"AUSGABEN",null,"Einkünfte",{"$f":"SUM(IF(YEAR(Einkünfte[DATUM])=K6,Einkünfte[BETRAG]))","v":{"v":12700,"d":"12,700 €"}}]
[]
[]
[]
[]
[]
[{"$nulls":3},"JANUAR","FEBRUAR","MÄRZ","APRIL","MAI","JUNI","JULI","AUGUST","SEPTEMBER","OKTOBER","NOVEMBER","DEZEMBER"]
[null,null,"Einkommen 1-15",{"$f":"SUMIFS(Einkünfte[BETRAG],Einkünfte[DATUM],\"<=\"&DtMitte,Einkünfte[DATUM],\">=\"&DtAnfang)","v":{"v":0,"d":"0.00 €"}},{"$f":"SUMIFS(Einkünfte[BETRAG],Einkünfte[DATUM],\"<=\"&DtMitte,Einkünfte[DATUM],\">=\"&DtAnfang)","v":{"v":0,"d":"0.00 €"}},{"$f":"SUMIFS(Einkünfte[BETRAG],Einkünfte[DATUM],\"<=\"&DtMitte,Einkünfte[DATUM],\">=\"&DtAnfang)","v":{"v":0,"d":"0.00 €"}},{"$f":"SUMIFS(Einkünfte[BETRAG],Einkünfte[DATUM],\"<=\"&DtMitte,Einkünfte[DATUM],\">=\"&DtAnfang)","v":{"v":0,"d":"0.00 €"}},{"$f":"SUMIFS(Einkünfte[BETRAG],Einkünfte[DATUM],\"<=\"&DtMitte,Einkünfte[DATUM],\">=\"&DtAnfang)","v":{"v":0,"d":"0.00 €"}},{"$f":"SUMIFS(Einkünfte[BETRAG],Einkünfte[DATUM],\"<=\"&DtMitte,Einkünfte[DATUM],\">=\"&DtAnfang)","v":{"v":0,"d":"0.00 €"}},{"$f":"SUMIFS(Einkünfte[BETRAG],Einkünfte[DATUM],\"<=\"&DtMitte,Einkünfte[DATUM],\">=\"&DtAnfang)","v":{"v":0,"d":"0.00 €"}},{"$f":"SUMIFS(Einkünfte[BETRAG],Einkünfte[DATUM],\"<=\"&DtMitte,Einkünfte[DATUM],\">=\"&DtAnfang)","v":{"v":1300,"d":"1,300.00 €"}},{"$f":"SUMIFS(Einkünfte[BETRAG],Einkünfte[DATUM],\"<=\"&DtMitte,Einkünfte[DATUM],\">=\"&DtAnfang)","v":{"v":2600,"d":"2,600.00 €"}},{"$f":"SUMIFS(Einkünfte[BETRAG],Einkünfte[DATUM],\"<=\"&DtMitte,Einkünfte[DATUM],\">=\"&DtAnfang)","v":{"v":2600,"d":"2,600.00 €"}},{"$f":"SUMIFS(Einkünfte[BETRAG],Einkünfte[DATUM],\"<=\"&DtMitte,Einkünfte[DATUM],\">=\"&DtAnfang)","v":{"v":0,"d":"0.00 €"}},{"$f":"SUMIFS(Einkünfte[BETRAG],Einkünfte[DATUM],\"<=\"&DtMitte,Einkünfte[DATUM],\">=\"&DtAnfang)","v":{"v":0,"d":"0.00 €"}}]
[null,null,"Einkommen 16-EDM",{"$f":"SUMIFS(Einkünfte[BETRAG],Einkünfte[DATUM],\"<=\"&DtEnde,Einkünfte[DATUM],\">=\"&DtMitte+1)","v":{"v":0,"d":"0.00 €"}},{"$f":"SUMIFS(Einkünfte[BETRAG],Einkünfte[DATUM],\"<=\"&DtEnde,Einkünfte[DATUM],\">=\"&DtMitte+1)","v":{"v":0,"d":"0.00 €"}},{"$f":"SUMIFS(Einkünfte[BETRAG],Einkünfte[DATUM],\"<=\"&DtEnde,Einkünfte[DATUM],\">=\"&DtMitte+1)","v":{"v":0,"d":"0.00 €"}},{"$f":"SUMIFS(Einkünfte[BETRAG],Einkünfte[DATUM],\"<=\"&DtEnde,Einkünfte[DATUM],\">=\"&DtMitte+1)","v":{"v":0,"d":"0.00 €"}},{"$f":"SUMIFS(Einkünfte[BETRAG],Einkünfte[DATUM],\"<=\"&DtEnde,Einkünfte[DATUM],\">=\"&DtMitte+1)","v":{"v":0,"d":"0.00 €"}},{"$f":"SUMIFS(Einkünfte[BETRAG],Einkünfte[DATUM],\"<=\"&DtEnde,Einkünfte[DATUM],\">=\"&DtMitte+1)","v":{"v":0,"d":"0.00 €"}},{"$f":"SUMIFS(Einkünfte[BETRAG],Einkünfte[DATUM],\"<=\"&DtEnde,Einkünfte[DATUM],\">=\"&DtMitte+1)","v":{"v":0,"d":"0.00 €"}},{"$f":"SUMIFS(Einkünfte[BETRAG],Einkünfte[DATUM],\"<=\"&DtEnde,Einkünfte[DATUM],\">=\"&DtMitte+1)","v":{"v":3100,"d":"3,100.00 €"}},{"$f":"SUMIFS(Einkünfte[BETRAG],Einkünfte[DATUM],\"<=\"&DtEnde,Einkünfte[DATUM],\">=\"&DtMitte+1)","v":{"v":3100,"d":"3,100.00 €"}},{"$f":"SUMIFS(Einkünfte[BETRAG],Einkünfte[DATUM],\"<=\"&DtEnde,Einkünfte[DATUM],\">=\"&DtMitte+1)","v":{"v":0,"d":"0.00 €"}},{"$f":"SUMIFS(Einkünfte[BETRAG],Einkünfte[DATUM],\"<=\"&DtEnde,Einkünfte[DATUM],\">=\"&DtMitte+1)","v":{"v":0,"d":"0.00 €"}},{"$f":"SUMIFS(Einkünfte[BETRAG],Einkünfte[DATUM],\"<=\"&DtEnde,Einkünfte[DATUM],\">=\"&DtMitte+1)","v":{"v":0,"d":"0.00 €"}}]
[null,null,"Ausgaben 1-15",{"$f":"SUMIFS(Ausgaben[BETRAG],Ausgaben[DATUM],\"<=\"&DtEnde,Ausgaben[DATUM],\">=\"&DtAnfang)","v":{"v":0,"d":"0.00 €"}},{"$f":"SUMIFS(Ausgaben[BETRAG],Ausgaben[DATUM],\"<=\"&DtEnde,Ausgaben[DATUM],\">=\"&DtAnfang)","v":{"v":0,"d":"0.00 €"}},{"$f":"SUMIFS(Ausgaben[BETRAG],Ausgaben[DATUM],\"<=\"&DtEnde,Ausgaben[DATUM],\">=\"&DtAnfang)","v":{"v":0,"d":"0.00 €"}},{"$f":"SUMIFS(Ausgaben[BETRAG],Ausgaben[DATUM],\"<=\"&DtEnde,Ausgaben[DATUM],\">=\"&DtAnfang)","v":{"v":0,"d":"0.00 €"}},{"$f":"SUMIFS(Ausgaben[BETRAG],Ausgaben[DATUM],\"<=\"&DtEnde,Ausgaben[DATUM],\">=\"&DtAnfang)","v":{"v":0,"d":"0.00 €"}},{"$f":"SUMIFS(Ausgaben[BETRAG],Ausgaben[DATUM],\"<=\"&DtEnde,Ausgaben[DATUM],\">=\"&DtAnfang)","v":{"v":0,"d":"0.00 €"}},{"$f":"SUMIFS(Ausgaben[BETRAG],Ausgaben[DATUM],\"<=\"&DtEnde,Ausgaben[DATUM],\">=\"&DtAnfang)","v":{"v":0,"d":"0.00 €"}},{"$f":"SUMIFS(Ausgaben[BETRAG],Ausgaben[DATUM],\"<=\"&DtEnde,Ausgaben[DATUM],\">=\"&DtAnfang)","v":{"v":1225,"d":"1,225.00 €"}},{"$f":"SUMIFS(Ausgaben[BETRAG],Ausgaben[DATUM],\"<=\"&DtEnde,Ausgaben[DATUM],\">=\"&DtAnfang)","v":{"v":6125,"d":"6,125.00 €"}},{"$f":"SUMIFS(Ausgaben[BETRAG],Ausgaben[DATUM],\"<=\"&DtEnde,Ausgaben[DATUM],\">=\"&DtAnfang)","v":{"v":2792,"d":"2,792.00 €"}},{"$f":"SUMIFS(Ausgaben[BETRAG],Ausgaben[DATUM],\"<=\"&DtEnde,Ausgaben[DATUM],\">=\"&DtAnfang)","v":{"v":0,"d":"0.00 €"}},{"$f":"SUMIFS(Ausgaben[BETRAG],Ausgaben[DATUM],\"<=\"&DtEnde,Ausgaben[DATUM],\">=\"&DtAnfang)","v":{"v":0,"d":"0.00 €"}}]
[null,null,"Ausgaben 16-EDM",{"$f":"SUMIFS(Ausgaben[BETRAG],Ausgaben[DATUM],\"<=\"&DtEnde,Ausgaben[DATUM],\">=\"&DtMitte+1)","v":{"v":0,"d":"0.00 €"}},{"$f":"SUMIFS(Ausgaben[BETRAG],Ausgaben[DATUM],\"<=\"&DtEnde,Ausgaben[DATUM],\">=\"&DtMitte+1)","v":{"v":0,"d":"0.00 €"}},{"$f":"SUMIFS(Ausgaben[BETRAG],Ausgaben[DATUM],\"<=\"&DtEnde,Ausgaben[DATUM],\">=\"&DtMitte+1)","v":{"v":0,"d":"0.00 €"}},{"$f":"SUMIFS(Ausgaben[BETRAG],Ausgaben[DATUM],\"<=\"&DtEnde,Ausgaben[DATUM],\">=\"&DtMitte+1)","v":{"v":0,"d":"0.00 €"}},{"$f":"SUMIFS(Ausgaben[BETRAG],Ausgaben[DATUM],\"<=\"&DtEnde,Ausgaben[DATUM],\">=\"&DtMitte+1)","v":{"v":0,"d":"0.00 €"}},{"$f":"SUMIFS(Ausgaben[BETRAG],Ausgaben[DATUM],\"<=\"&DtEnde,Ausgaben[DATUM],\">=\"&DtMitte+1)","v":{"v":0,"d":"0.00 €"}},{"$f":"SUMIFS(Ausgaben[BETRAG],Ausgaben[DATUM],\"<=\"&DtEnde,Ausgaben[DATUM],\">=\"&DtMitte+1)","v":{"v":0,"d":"0.00 €"}},{"$f":"SUMIFS(Ausgaben[BETRAG],Ausgaben[DATUM],\"<=\"&DtEnde,Ausgaben[DATUM],\">=\"&DtMitte+1)","v":{"v":100,"d":"100.00 €"}},{"$f":"SUMIFS(Ausgaben[BETRAG],Ausgaben[DATUM],\"<=\"&DtEnde,Ausgaben[DATUM],\">=\"&DtMitte+1)","v":{"v":775,"d":"775.00 €"}},{"$f":"SUMIFS(Ausgaben[BETRAG],Ausgaben[DATUM],\"<=\"&DtEnde,Ausgaben[DATUM],\">=\"&DtMitte+1)","v":{"v":0,"d":"0.00 €"}},{"$f":"SUMIFS(Ausgaben[BETRAG],Ausgaben[DATUM],\"<=\"&DtEnde,Ausgaben[DATUM],\">=\"&DtMitte+1)","v":{"v":0,"d":"0.00 €"}},{"$f":"SUMIFS(Ausgaben[BETRAG],Ausgaben[DATUM],\"<=\"&DtEnde,Ausgaben[DATUM],\">=\"&DtMitte+1)","v":{"v":0,"d":"0.00 €"}}]

{"sheet":"Ausgaben und Einkommen","index":1,"n_rows":40,"n_cols":10,"rows_kept":40}
[]
[null,null,"Halbmonatliches Haushaltsbudget",{"$nulls":6},"EINKÜNFTE UND AUSGABEN"]
[]
[]
[]
[null,null,"EINKÜNFTE",{"$nulls":3},"AUSGABEN"]
[]
[null,null,"DATUM","BESCHREIBUNG","BETRAG",null,"DATUM","KATEGORIE","BESCHREIBUNG","BETRAG"]
[null,null,{"$f":"NOW()-14","v":"2018-11-06T15:28:48.280"},"Gehalt David",{"v":1300,"d":"1,300.00 €"},null,{"$f":"NOW()-7","v":"2018-11-13T15:28:48.280"},"Haushalt","Hypothek",{"v":1000,"d":"1,000.00 €"}]
[null,null,{"$f":"NOW()-14","v":"2018-11-06T15:28:48.280"},"Gehalt Patrizia",{"v":1300,"d":"1,300.00 €"},null,{"$f":"NOW()-7","v":"2018-11-13T15:28:48.280"},"Haushalt","Strom/Heizung",{"v":100,"d":"100.00 €"}]
[null,null,{"$f":"NOW()-28","v":"2018-10-23T15:28:48.280"},"Gehalt David",{"v":1500,"d":"1,500.00 €"},null,"2018-11-13T15:28:48.280","Haushalt","Wasser/Abwasser",{"v":50,"d":"50.00 €"}]
[null,null,"2018-10-23T15:28:48.280","Gehalt Patrizia",{"v":1600,"d":"1,600.00 €"},null,"2018-11-13T15:28:48.280","Haushalt","Müllgebühren",{"v":25,"d":"25.00 €"}]
[null,null,{"$f":"NOW()-42","v":"2018-10-09T15:28:48.280"},"Gehalt David",{"v":1300,"d":"1,300.00 €"},null,"2018-11-13T15:28:48.280","Haushalt","Handykosten",{"v":100,"d":"100.00 €"}]
[null,null,"2018-10-09T15:28:48.280","Gehalt Patrizia",{"v":1300,"d":"1,300.00 €"},null,"2018-11-13T15:28:48.280","Haushalt","Telefon (privat)",{"v":30,"d":"30.00 €"}]
[null,null,{"$f":"NOW()-56","v":"2018-09-25T15:28:48.280"},"Gehalt David",{"v":1500,"d":"1,500.00 €"},null,"2018-11-13T15:28:48.280","Haushalt","Internet",{"v":50,"d":"50.00 €"}]
[null,null,"2018-09-25T15:28:48.280","Gehalt Patrizia",{"v":1600,"d":"1,600.00 €"},null,"2018-11-13T15:28:48.280","Haushalt","Fernsehgebühren",{"v":50,"d":"50.00 €"}]
[null,null,{"$f":"NOW()-70","v":"2018-09-11T15:28:48.280"},"Gehalt David",{"v":1300,"d":"1,300.00 €"},null,"2018-11-13T15:28:48.280","Haushalt","Wartung/Reparaturen",{"v":25,"d":"25.00 €"}]
[{"$nulls":6},{"$f":"NOW()-8","v":"2018-11-12T15:28:48.280"},"Haushalt","Kreditkarte 1",{"v":100,"d":"100.00 €"}]
[{"$nulls":6},{"$f":"NOW()-9","v":"2018-11-11T15:28:48.280"},"Unterhaltung","Kino",{"v":37,"d":"37.00 €"}]
[{"$nulls":6},{"$f":"NOW()-10","v":"2018-11-10T15:28:48.280"},"Essen","Lebensmittel",{"v":350,"d":"350.00 €"}]
[{"$nulls":6},{"$f":"NOW()-11","v":"2018-11-09T15:28:48.280"},"Essen","Restaurantbesuche",{"v":75,"d":"75.00 €"}]
[{"$nulls":6},{"$f":"NOW()-12","v":"2018-11-08T15:28:48.280"},"Kinder","Schulspeisung",{"v":150,"d":"150.00 €"}]
[{"$nulls":6},{"$f":"NOW()-13","v":"2018-11-07T15:28:48.280"},"Kapitalanlagen","Spareinlagen",{"v":250,"d":"250.00 €"}]
[{"$nulls":6},{"$f":"NOW()-14","v":"2018-11-06T15:28:48.280"},"Kapitalanlagen","Kapitalanlagen",{"v":250,"d":"250.00 €"}]
[{"$nulls":6},{"$f":"NOW()-15","v":"2018-11-05T15:28:48.280"},"Persönlich","Fitnesscenter",{"v":100,"d":"100.00 €"}]
[{"$nulls":6},{"$f":"NOW()-16","v":"2018-11-04T15:28:48.280"},"Haustiere","Essen",{"v":50,"d":"50.00 €"}]
[{"$nulls":6},{"$f":"NOW()-20","v":"2018-10-31T15:28:48.280"},"Haustiere","Pflege",{"v":50,"d":"50.00 €"}]
[{"$nulls":6},{"$f":"NOW()-20","v":"2018-10-31T15:28:48.280"},"Haustiere","Sonstige",{"v":50,"d":"50.00 €"}]
[{"$nulls":6},{"$f":"NOW()-25","v":"2018-10-26T15:28:48.280"},"Verkehrsmittel","Zahlung Kfz 1",{"v":300,"d":"300.00 €"}]
[{"$nulls":6},{"$f":"NOW()-25","v":"2018-10-26T15:28:48.280"},"Verkehrsmittel","Zahlung Kfz 2",{"v":350,"d":"350.00 €"}]
[{"$nulls":6},{"$f":"NOW()-25","v":"2018-10-26T15:28:48.280"},"Verkehrsmittel","Kfz-Versicherung",{"v":50,"d":"50.00 €"}]
[{"$nulls":6},{"$f":"NOW()-30","v":"2018-10-21T15:28:48.280"},"Verkehrsmittel","Kraftstoff",{"v":50,"d":"50.00 €"}]
[{"$nulls":6},{"$f":"NOW()-31","v":"2018-10-20T15:28:48.280"},"Verkehrsmittel","Kraftstoff",{"v":25,"d":"25.00 €"}]
[{"$nulls":6},{"$f":"NOW()-42","v":"2018-10-09T15:28:48.280"},"Verkehrsmittel","Wartung/Reparaturen",{"v":150,"d":"150.00 €"}]
[{"$nulls":6},{"$f":"NOW()-45","v":"2018-10-06T15:28:48.280"},"Haushalt","Hypothek",{"v":5000,"d":"5,000.00 €"}]
[{"$nulls":6},{"$f":"NOW()-50","v":"2018-10-01T15:28:48.280"},"Haushalt","Allgemeiner Bedarf",{"v":200,"d":"200.00 €"}]
[{"$nulls":6},{"$f":"NOW()-65","v":"2018-09-16T15:28:48.280"},"Haushalt","Telefon (privat)",{"v":100,"d":"100.00 €"}]
[{"$nulls":6},{"$f":"NOW()-70","v":"2018-09-11T15:28:48.280"},"Haushalt","Müllgebühren",{"v":50,"d":"50.00 €"}]
[{"$nulls":6},{"$f":"NOW()-75","v":"2018-09-06T15:28:48.280"},"Haushalt","Hypothek",{"v":1000,"d":"1,000.00 €"}]
[{"$nulls":6},{"$f":"NOW()-78","v":"2018-09-03T15:28:48.280"},"Unterhaltung","Kino",{"v":75,"d":"75.00 €"}]

{"sheet":"Kostenrahmen","index":2,"n_rows":41,"n_cols":8,"rows_kept":41}
[]
[null,null,"Halbmonatliches Haushaltsbudget",{"$nulls":4},"KOSTENRAHMEN"]
{"$rows_empty":10}
[null,null,"AUSGABEN",null,null,"KATEGORIE \"SUMMEN\""]
[]
[null,null,"BESCHREIBUNG","SUMMEN"]
[null,null,"Allgemeiner Bedarf",{"v":200,"d":"200 €"}]
[null,null,"Essen",{"v":50,"d":"50 €"}]
[null,null,"Fernsehgebühren",{"v":50,"d":"50 €"}]
[null,null,"Fitnesscenter",{"v":100,"d":"100 €"}]
[null,null,"Handykosten",{"v":100,"d":"100 €"}]
[null,null,"Hypothek",{"v":7000,"d":"7,000 €"}]
[null,null,"Internet",{"v":50,"d":"50 €"}]
[null,null,"Kapitalanlagen",{"v":250,"d":"250 €"}]
[null,null,"Kfz-Versicherung",{"v":50,"d":"50 €"}]
[null,null,"Kino",{"v":112,"d":"112 €"}]
[null,null,"Kraftstoff",{"v":75,"d":"75 €"}]
[null,null,"Kreditkarte 1",{"v":100,"d":"100 €"}]
[null,null,"Lebensmittel",{"v":350,"d":"350 €"}]
[null,null,"Müllgebühren",{"v":75,"d":"75 €"}]
[null,null,"Pflege",{"v":50,"d":"50 €"}]
[null,null,"Restaurantbesuche",{"v":75,"d":"75 €"}]
[null,null,"Schulspeisung",{"v":150,"d":"150 €"}]
[null,null,"Sonstige",{"v":50,"d":"50 €"}]
[null,null,"Spareinlagen",{"v":250,"d":"250 €"}]
[null,null,"Strom/Heizung",{"v":100,"d":"100 €"}]
[null,null,"Telefon (privat)",{"v":130,"d":"130 €"}]
[null,null,"Wartung/Reparaturen",{"v":175,"d":"175 €"}]
[null,null,"Wasser/Abwasser",{"v":50,"d":"50 €"}]
[null,null,"Zahlung Kfz 1",{"v":300,"d":"300 €"}]
[null,null,"Zahlung Kfz 2",{"v":350,"d":"350 €"}]
[null,null,"SUMME",{"v":10242,"d":"10,242 €"}]

{"sheet":"Datenlisten","index":3,"n_rows":20,"n_cols":14,"rows_kept":20}
[]
[null,null,"Halbmonatliches Haushaltsbudget",{"$nulls":10},"DATA LISTS"]
[]
[]
[null,null,"EINRICHTEN         Mit der Kategorie \"Daten\" unten werden die Dropdownlisten in der Tabelle \"Ausgaben\" auf dem Arbeitsblatt \"Ausgaben und Einkünfte\" ausgefüllt. Ändern Sie die Kategorienamen oder die Beschreibungen unter den einzelnen Kategorien, um die Listen zu aktualisieren."]
[]
[null,null,"Haushalt","Unterhaltung","Essen","Geschenke/Spenden","Kinder","Kapitalanlagen","Medikamente","Sonstige","Persönlich","Haustiere","Steuern/Abgaben","Verkehrsmittel"]
[null,null,"Hypothek","Kino","Lebensmittel","Spenden 1","Kleidung","Private Rentenversicherung","Ambulante/stationäre Behandlungen","Sonstige","Bekleidung","Essen","Einkommensteuer","Zahlung Kfz 1"]
[null,null,"Strom/Heizung","Videos/Filme","Restaurantbesuche","Spenden 2","Spielzeug/Spiele","Spareinlagen","Versicherungen","Mitgliedsbeiträge","Haar-/Nagelpflege","Allgemeiner Bedarf","Staatliche Steuern","Zahlung Kfz 2"]
[null,null,"Wasser/Abwasser","Musik",null,"Spenden 3","Schulspeisung","Girokonto",null,null,"Chemische Reinigung","Medikamente","Grundsteuer","Kfz-Versicherung"]
[null,null,"Müllgebühren","Konzerte/Theater",null,"Geschenk","Gebühren/Abgaben","Altersvorsorge",null,null,"Fitnesscenter","Pflege","Sonstige","Kfz-Anmeldegebühren"]
[null,null,"Handykosten","Sportveranstaltungen",null,null,"Unterrichtsmaterialien","Kapitalanlagen",null,null,"Einkäufe","Sonstige","Anwaltskosten","Kraftstoff"]
[null,null,"Telefon (privat)","Sonstige",null,null,"Sonstige","Ausbildung",null,null,"Sonstige",null,"Kindergeld","Wartung/Reparaturen"]
[null,null,"Internet",{"$nulls":3},"Wäsche","Darlehen",{"$nulls":4},"Unterhaltszahlungen","Busse und Bahnen"]
[null,null,"Fernsehgebühren",{"$nulls":4},"Studienkredite",{"$nulls":4},"Sonstige"]
[null,null,"Wartung/Reparaturen"]
[null,null,"Allgemeiner Bedarf"]
[null,null,"Kabel/Internet/Telefon"]
[null,null,"Kreditkarte 1"]
[null,null,"Kreditkarte 2"]

{"sheet":"Kategorie PivotTable","index":4,"n_rows":16,"n_cols":14,"rows_kept":16,"hidden":true}
[]
[null,null,"Halbmonatliches Haushaltsbudget",{"$nulls":10},"KATEGORIE \"PIVOT\""]
[]
[]
[null,"Diese PivotTable ist die Datenquelle für das PivotChart \"Kategorie 'Summen'\" auf dem Arbeitsblatt \"Kostenrahmen\"."]
[]
[null,null,"Popisky řádků","Summe von BETRAG"]
[null,null,"Essen",{"v":425,"d":"425 €"}]
[null,null,"Haushalt",{"v":7880,"d":"7,880 €"}]
[null,null,"Haustiere",{"v":150,"d":"150 €"}]
[null,null,"Kapitalanlagen",{"v":500,"d":"500 €"}]
[null,null,"Kinder",{"v":150,"d":"150 €"}]
[null,null,"Persönlich",{"v":100,"d":"100 €"}]
[null,null,"Unterhaltung",{"v":112,"d":"112 €"}]
[null,null,"Verkehrsmittel",{"v":925,"d":"925 €"}]
[null,null,"Celkový součet",{"v":10242,"d":"10,242 €"}]